Cogmind - Beta 16 @@@ ROGUE MODE // 2026.01.06 @ 15:53:31 Player: Oldman Pu Result: Self-destructed Performance ------------- Evolutions (1) 500 Regions Visited (3) 600 Robots Destroyed (28) 140 Value Destroyed (554) 554 Prototype IDs (3) 60 Alien Tech Used (0) 0 Bonus (0) 0 TOTAL SCORE: 1854 Bonus ------- None Cogmind --------- Core Integrity 339/400 Matter 300/300 Energy 250/250 System Corruption 0% Temperature Cool (0) Movement Rolling (105) Ox1 Location -9/Materials Parts ------- > --- POWER (1) -------- Ion Engine > --- PROPULSION (3) --- Wheel Compact Wheel > --- UTILITY (3) ------ Heat Sink Large Storage Unit Light Armor Plating > --- WEAPON (2) ------- Beam Rifle Ion Cannon > --- INVENTORY (15) --- Improved Heat Sink Small Storage Unit Improved Terrain Scanner Light Armor Plating Small Laser Beam Rifle Ion Cannon Ion Cannon Ion Cannon Peak State ------------ > --- POWER ------------ Ion Engine > --- PROPULSION ------- Wheel Compact Wheel > --- UTILITY ---------- Heat Sink Large Storage Unit Light Armor Plating > --- WEAPON ----------- Heavy EM Shotgun Beam Rifle > --- INVENTORY -------- Improved Heat Sink Small Storage Unit Improved Terrain Scanner Light Armor Plating Small Laser Beam Rifle [Rating: 13] Favorites ----------- Power Ion Engine Engine Ion Engine Propulsion Wheel Wheel Wheel Utility Heat Sink Device Heat Sink Storage Small Storage Unit Protection Light Armor Plating Weapon Small Laser Energy Gun Small Laser Energy Cannon Ion Cannon Ballistic Gun Light Assault Rifle Build | -11 -10 -10 -9 ------- Run | Yrd Mat Min Mat Slots Evolved 2 | . . . 2 Power . | . . . . Propulsion 1 | . . . 1 Utility 1 | . . . 1 Weapon . | . . . . Parts Attached 22 | 6 8 3 5 Power 4 | 1 2 . 1 Engine 4 | 1 2 . 1 Core . | . . . . Reactor . | . . . . Propulsion 6 | 2 2 2 . Treads . | . . . . Leg . | . . . . Wheel 6 | 2 2 2 . Hover . | . . . . Flight . | . . . . Utility 5 | 1 3 . 1 Device 1 | . 1 . . Storage 2 | 1 1 . . Processor . | . . . . Hackware . | . . . . Protection 2 | . 1 . 1 Artifact . | . . . . Weapon 7 | 2 1 1 3 Energy Gun 5 | 2 1 . 2 Energy Cannon 1 | . . . 1 Ballistic Gun 1 | . . 1 . Ballistic Cannon . | . . . . Launcher . | . . . . Special Weapon . | . . . . Impact Weapon . | . . . . Slashing Weapon . | . . . . Piercing Weapon . | . . . . Special Melee Weapon . | . . . . Unidentified Prototypes 1 | . . . 1 Parts Lost 9 | . 5 3 1 Power 3 | . 2 . 1 Propulsion 4 | . 2 2 . Utility 1 | . 1 . . Weapon 1 | . . 1 . Highest Loss Streak 2 | . 2 2 1 To Critical Strikes . | . . . . Average Backups 6 | . 6 6 6 Power . | . . . . Propulsion 1 | . 2 1 . Utility 3 | . 3 5 4 Weapon . | . . . 2 Tool/Special . | . . . . Unused Backups 10 | . 3 . 7 Power . | . . . . Propulsion 3 | . 3 . . Utility 3 | . . . 3 Weapon 4 | . . . 4 Tool/Special . | . . . . Average Slot Usage (%) 87 | . 88 88 84 Engine 12 | . 13 14 9 Wheel 21 | . 21 19 22 Device 8 | . 6 14 11 Storage 13 | . 14 14 11 Protection 5 | . 5 . 9 Energy Gun 21 | . 25 12 11 Ballistic Gun 2 | . . 13 5 Peak Build Rating 13 | 6 8 8 13 Average Rating 7 | 4 6 6 10 On Entrance 5 | . 6 8 7 Avg Prop Armor Cover (%) . | . . . . Naked Turns . | . . . . Heaviest Build 38 | 13 29 29 38 Greatest Support 26 | 20 26 26 26 Greatest Overweight (x) 8 | 1 8 2 1 Average Overweight (x) . | . . 1 1 Largest Inventory Capacity 15 | 8 15 15 15 Average Capacity 11 | 7 9 15 15 Most Carried 9 | 1 8 8 9 Average Carried 6 | . 6 6 6 Final Capacity 15 | 8 15 15 15 Final Carried 9 | 1 7 5 9 Class Distribution -------------------- 83% | Mutant 16% | Scavenger-Mutant Dominant Class ---------------- Mutant | -10/Materials Scavenger-Mutant | -10/Mines Mutant | -9/Materials Resources | -11 -10 -10 -9 ----------- Run | Yrd Mat Min Mat Matter Collected 507 | 94 277 81 55 Remotely . | . . . . Salvage Created 860 | . 613 102 145 Parts 61 | . 33 12 16 Haulers Intercepted 1 | . 1 . . Recyclers Shooed . | . . . . Parts Field Recycled . | . . . . Retrieved Matter . | . . . . Parts Self-Destructed . | . . . . Prevented . | . . . . Parts Restored . | . . . . Kills | -11 -10 -10 -9 ------- Run | Yrd Mat Min Mat Combat Hostiles Destroyed 23 | . 11 6 6 Guns 18 | . 9 6 3 Cannons 3 | . . . 3 Classes Destroyed 8 | . 7 . 1 Tunneler 1 | . 1 . . Hauler 1 | . 1 . . Recycler 1 | . 1 . . Operator 1 | . 1 . . Watcher 1 | . 1 . . Swarmer 13 | . 3 6 4 Grunt 9 | . 8 . 1 Sentry 1 | . . . 1 Best Kill Streak 6 | . 4 3 6 Combat Bots Only 6 | . 3 3 6 Max Kills in Single Turn 2 | . 1 1 2 Gunslinging . | . . . . Exploded . | . . . . Melee . | . . . . Uniques/NPCs Destroyed . | . . . . Combat | -11 -10 -10 -9 -------- Run | Yrd Mat Min Mat Hostile Shots Fired 142 | . 63 40 39 Missed 37 | . 17 9 11 Hits 105 | . 46 31 28 Projectile 105 | . 46 31 28 Damage Taken 1030 | . 526 255 249 Core 259 | . 108 90 61 Absorbed by Shields . | . . . . Core Remaining (%) 60 | 100 . 20 . Volleys Fired 106 | . 74 19 13 Largest 2 | . 2 2 2 Hottest 116 | . 90 90 116 Shots Fired 175 | . 122 27 26 Gun 162 | . 122 27 13 Cannon 13 | . . . 13 Launcher . | . . . . Special . | . . . . Kinetic 17 | . . 17 . Thermal 158 | . 122 10 26 Explosive . | . . . . Electromagnetic . | . . . . Robot Hit Streak 10 | . 10 6 5 Robot Miss Streak 4 | . 3 3 4 Penetration Max . | . . . . Secondary Targets . | . . . . Shots Hit Robots 105 | . 77 16 12 Core Hits 41 | . 27 8 6 Critical Kills . | . . . . Critical Parts Destroyed . | . . . . Critical Strikes 4 | . 4 . . Burn 4 | . 4 . . Melee Attacks . | . . . . Impact . | . . . . Slashing . | . . . . Piercing . | . . . . Sneak Attacks . | . . . . Combat Hostiles . | . . . . Follow-up Attacks . | . . . . Damage Inflicted 1405 | . 969 151 285 Guns 1220 | . 969 151 100 Cannons 185 | . . . 185 Explosions . | . . . . Melee . | . . . . Ramming . | . . . . Kinetic 81 | . . 81 . Thermal 1324 | . 969 70 285 Explosive . | . . . . Electromagnetic . | . . . . Impact . | . . . . Slashing . | . . . . Piercing . | . . . . Highest Corruption 2 | . 2 2 . Average Corruption 2 | . 2 2 . Corruption Purged . | . . . . Corruption Blocked . | . . . . Effects 4 | . 1 3 . Matter Fused 2 | . . 2 . Data Loss (minor) 1 | . 1 . . Alerts 1 | . . 1 . Overload Shots . | . . . . Overflow Damage 18 | . . . 18 Projectiles 18 | . . . 18 Explosions . | . . . . Melee . | . . . . Knockbacks . | . . . . Impact . | . . . . Kinetic . | . . . . Secondary . | . . . . Self-Inflicted Damage . | . . . . Shots . | . . . . Rammed 1 | . 1 . . Targets Rammed 1 | . 1 . . Kicked . | . . . . Crushed . | . . . . Highest Temperature 348 | . 348 . 194 Average Temperature 94 | . 95 . 90 Received Heat Transfer 279 | . 246 . 33 Effects 1 | . 1 . . Energy Bleed 1 | . 1 . . Siege Activations . | . . . . Martial Activations . | . . . . Shielding Activations . | . . . . Robots Disrupted . | . . . . Combat Hostiles . | . . . . Robots Corrupted . | . . . . Combat Hostiles . | . . . . Parts Fried . | . . . . Impact Corruptions . | . . . . Robots Melted 2 | . 2 . . Combat Hostiles 2 | . 2 . . Parts Melted 9 | . 8 1 . Heat Transferred 3685 | . 2956 174 555 Parts Sabotaged . | . . . . Parts Stolen . | . . . . Parts Stripped . | . . . . Power Chain Reactions . | . . . . Alert | -11 -10 -10 -9 ------- Run | Yrd Mat Min Mat Maximum Alert Level . | . . . . Low Security (%) 100 | 100 100 100 100 Level 1 . | . . . . Level 2 . | . . . . Level 3 . | . . . . Level 4 . | . . . . Level 5 . | . . . . High Security . | . . . . Max Security . | . . . . Peak Influence 121 | . 57 60 121 Initial 11 | . . 9 11 Average 24 | . 20 34 45 Influence Increases 654 | . 343 140 171 Destroy 0b10 Robot/C 460 | . 220 120 120 Destroy 0b10 Robot/NC 25 | . 25 . . Destroy Leader 104 | . 64 20 20 Successful Hack 19 | . 19 . . Destroy Structure 1 | . . . 1 Lose Combat Pursuer 45 | . 15 . 30 Influence Decreases 533 | . 317 136 80 Entered New Map 36 | . . 17 19 Time Decay 437 | . 297 89 51 Lost Part 60 | . 20 30 10 Squads Dispatched 4 | . 4 . . Investigation 1 | . 1 . . Extermination . | . . . . Reinforcement 3 | . 3 . . Assault . | . . . . Garrison . | . . . . Intercept . | . . . . Searches Triggered . | . . . . Construction Impeded . | . . . . Haulers Reinforced . | . . . . Active Scanning Responses . | . . . . Cargo Convoy Interrupts . | . . . . Stealth | -11 -10 -10 -9 --------- Run | Yrd Mat Min Mat Distress Signals . | . . . . Communications Jammed . | . . . . Distress Signals . | . . . . Times Spotted 37 | . 20 8 9 Peak Tracking Total 6 | . 3 3 6 Tactical Retreats 2 | . 1 . 1 Traps | -11 -10 -10 -9 ------- Run | Yrd Mat Min Mat Traps Triggered 5 | . 5 . . Indirectly . | . . . . Trap Hack Attempts . | . . . . Triggered . | . . . . Disarmed . | . . . . Reprogrammed . | . . . . Reused . | . . . . Traps Extracted . | . . . . Installed . | . . . . Triggered . | . . . . Machines | -11 -10 -10 -9 ---------- Run | Yrd Mat Min Mat Machines Disabled . | . . . . Max in Single Turn . | . . . . Machines Repaired . | . . . . Machines Dismantled . | . . . . Machines Sabotaged . | . . . . Overloaded Fab Kills . | . . . . Hacking | -11 -10 -10 -9 --------- Run | Yrd Mat Min Mat Machines Accessed 5 | . 4 . 1 Terminals 3 | . 3 . . Fabricators . | . . . . Repair Stations . | . . . . Recycling Units 2 | . 1 . 1 Scanalyzers . | . . . . Garrison Access . | . . . . Total Hacks 12 | . 11 . 1 Successful 8 | . 7 . 1 Failed 4 | . 4 . . Catastrophic 2 | . 2 . . Database Lockouts . | . . . . Manual . | . . . . Terminals 9 | . 9 . . Fabricators . | . . . . Repair Stations . | . . . . Recycling Units 3 | . 2 . 1 Scanalyzers . | . . . . Garrison Access . | . . . . Terminal Hacks 6 | . 6 . . Prototype ID Bank 1 | . 1 . . Branch Access Points 1 | . 1 . . Locate Traps 1 | . 1 . . Dispatch Records 1 | . 1 . . Reinforcement Status 1 | . 1 . . Zone Layout 1 | . 1 . . Fabricator Hacks . | . . . . Repair Station Hacks . | . . . . Recycling Unit Hacks 2 | . 1 . 1 Retrieve Components 2 | . 1 . 1 Scanalyzer . | . . . . Garrison Access Hacks . | . . . . Unauthorized Hacks . | . . . . Terminals . | . . . . Fabricators . | . . . . Repair Stations . | . . . . Recycling Units . | . . . . Scanalyzers . | . . . . Garrison Access . | . . . . Data Cores Recovered . | . . . . Used . | . . . . Hacking Detections 2 | . 2 . . Full Trace Events 1 | . 1 . . Feedback Events . | . . . . Feedback Blocked . | . . . . Robot Schematics Acquired . | . . . . Robots Built . | . . . . Authchips . | . . . . Time . | . . . . Total Robot Build Rating . | . . . . Part Schematics Acquired . | . . . . Parts Built . | . . . . Authchips . | . . . . Time . | . . . . Total Part Build Rating . | . . . . Part Studies Acquired . | . . . . Parts Repaired . | . . . . Time . | . . . . Parts Recycled . | . . . . Recycled Matter . | . . . . Retrieved Matter . | . . . . Retrieved Components 10 | . 9 . 1 Parts Scanalyzed . | . . . . Part Schematics Acquired . | . . . . Parts Damaged . | . . . . Bothacking | -11 -10 -10 -9 ------------ Run | Yrd Mat Min Mat Used RIF Installer . | . . . . Robots Hacked . | . . . . Non-combat . | . . . . Combat . | . . . . Robot Hacks Applied . | . . . . Relay Couplers Released . | . . . . Fabnet Peak Effective % . | . . . . Robots Rewired . | . . . . Allies Hacked . | . . . . Hacks Repelled . | . . . . Allies | -11 -10 -10 -9 -------- Run | Yrd Mat Min Mat Total Allies . | . . . . Largest Group . | . . . . Highest-Rated Group . | . . . . Highest-Rated Ally . | . . . . Total Orders . | . . . . Ally Attacks . | . . . . Total Damage . | . . . . Kills . | . . . . Allies Corrupted . | . . . . Allies Melted . | . . . . Intel | -11 -10 -10 -9 ------- Run | Yrd Mat Min Mat Active Infowar (turns) . | . . . . Robot Analysis Total . | . . . . Derelict Logs Recovered . | . . . . Drone Launches . | . . . . Drone Recoveries . | . . . . Exploration | -11 -10 -10 -9 ------------- Run | Yrd Mat Min Mat Turns Passed 1326 | 37 941 181 167 Spaces Moved 950 | 36 680 124 110 Core 8 | 6 2 . . Treads . | . . . . Legs . | . . . . Wheels 942 | 30 678 124 110 Hover . | . . . . Flight . | . . . . Fastest Speed 50 | 50 80 95 105 Average Speed 96 | 76 94 107 105 Slowest Speed 450 | 100 450 110 105 Overloaded Moves . | . . . . Propulsion Burnouts . | . . . . Robots Hopped . | . . . . Potential Cave-ins . | . . . . Cave-ins Triggered . | . . . . Exploration Rate (%) 36 | 3 91 34 16 Regions Visited 3 Branch Regions 1 Pre-discovered Areas . | . . . . Known Exits Taken 1 | . 1 . . Unknown Exits Taken 2 | 1 . 1 . Scrap Searched . | . . . . Spaces Dug . | . . . . Terrain Destroyed 1 | . . . 1 Melee . | . . . . Projectile 1 | . . . 1 AOE . | . . . . Terrain Rammed . | . . . . Walls Destroyed . | . . . . Machines Disabled . | . . . . Actions | -11 -10 -10 -9 --------- Run | Yrd Mat Min Mat Total 1173 | 42 850 147 134 Wait 67 | . 67 . . Move 947 | 35 679 123 110 Hop . | . . . . Pick Up 16 | 1 10 1 4 Fast Attach 22 | 6 13 . 3 Attach 6 | . 2 3 1 Detach . | . . . . Swap 3 | . 1 1 1 Drop 5 | . 3 . 2 Fire 106 | . 74 19 13 Melee . | . . . . Ram 1 | . 1 . . Kick . | . . . . Crush . | . . . . Escape Stasis . | . . . . Rewire . | . . . . Trap . | . . . . Miscellaneous . | . . . . Route ------- -11/Scrapyard -10/Materials (discovered 5 exits: *Mat x3 / *Min x2) -10/Mines -9/Materials History --------- Turn | Location | Event 15 | -11/Scrapyard | Discovered new exit (range 16) 38 | -11/Scrapyard | Entered Materials 217 | -10/Materials | Discovered new exit (range 10) 306 | -10/Materials | Build established: Mutant 306 | -10/Materials | Identified exit to Mines 524 | -10/Materials | Discovered new exit (range 13) 826 | -10/Materials | Discovered new exit (range 10) 979 | -10/Materials | Entered Mines 993 | -10/Mines | Core integrity fell below 50% 1115 | -10/Mines | Discovered new exit (range 10) 1160 | -10/Mines | Entered Materials 1160 | -9/Materials | Evolved 2 slots: Propulsion x1, Utility x1 1327 | -9/Materials | Self-destructed Last Messages --------------- 01203_ K-01 Serf collects debris. 01237_ Dropped Lgt. Assault Rifle. 01238_ Acquired Prototype Energy Gun. 01238_ Identified Hvy. EM Shotgun. 01239_ Dropped Hvy. EM Shotgun. 01242_ Acquired Ion Cannon. 01244_ Destroyed Flight Unit. 01247_ S-10 Pest destroyed. 01259_ Y-45 Defender destroyed. 01260_ Ion Engine destroyed. 01268_ Destroyed Lgt. Ion Engine. 01268_ S-10 Pest destroyed. 01271_ G-34 Mercenary destroyed. 01274_ U-05 Engineer builds a Wall. 01275_ Acquired Ion Cannon. 01281_ Acquired Ion Engine. 01283_ Acquired 12 matter. 01284_ K-01 Serf collects debris. 01291_ Acquired 43 matter. 01295_ K-01 Serf collects debris. Map ----- +----------------------------------------------------+ | ????????????????????????????????????????????? | | ???????????????????????? ???????????????????? | | ???????????????????????? ???????????????????? | | ???????????????????????? ???????????????????? | | ???????????????????????? ???????????????????? | | ???????????????????????? ???????????????????? | | ???????????????????????? ???????????????????? | | ???????????????????????? ???????????????????? | | ???????????????????????# #??????????????????? | | ???????????????????????# #??????????????????? | | ???????????????????????# #??????????????????? | | ???????????????????????# #??????????????????? | | ???????????????????????# #??????????????????? | | ?????????########??????# #?######???????????? | | ?????????#!! [[#??????# #?# #???????????? | | ?????????#!! ![[#????### ### #???????????? | | ?????????# = *[#????# # #???????????? | | ?????????# =[[%###### # #???????????? | | ?????????# [* [%[*= + #???????????? | | ?????????# ######### # #???????????? | | ?????????# =###?????# # #???????????? | | ?????????+ *%#???????####### #???????????? | | ?????????# =###########???##+###????###????? | | ?????????# # k ] #????# #### #????? | | ?#######?# # ###### #????? | | # ?# # @ + | | # # # """"""" ###### | | # # # """"""" #????# "? | | # + + """"""" #????######## ""? | | # !! # # """"""" #????????????? ?? | | # ! # # """"""" #?????????????? ?? | | # ?# ###########???????????????? ?? | | # ?# # #???????????????????? ??? | | # ??# # #???????????????????????? | | #######??# # """ #???????????????????????? | | ########## # """ #???????????????????????? | | # # # """ #???????????????????????? | | # """# # ?????????????????????????? | | # """# ###+#############+?????????????? | | # """# ????????????? | | # + ????????????? | | # """# ????????????? | | # """# ###+#############+?????????????? | | # ] """# # #???????????????????????? | | # # # "" #???????????????????????? | | ########## # /Y" #???????????????????????? | | ?????????##### "" #???????????????????????? | | ?????????????# #???????????????????????? | | ?????????????# #???????????????????????? | | ?????????????########???????????????????????? | +----------------------------------------------------+ Best States ------------- Heat Dissipation 38 Energy Generation 10 Energy Capacity 250 Matter Stores 300 Matter Capacity 300 Sight Range 16 Terrain Scan Density 10 Armor Coverage 150 Evasion (%) 44 Item Schematics ----------------- None Robot Schematics ------------------ None Fabricated ------------ Nothing Repaired ---------- Nothing Studied --------- None Alien Tech Used ----------------- None Achievements -------------- None Challenges ------------ None Game ------ Seed ThermoelectricTripodModule Manual? 0 Play Time 00:15:14 Cumulative 313.7 hours Start 2026.01.06 @ 15:39:34 End 2026.01.06 @ 15:53:31 Sessions 1 Manual Loads 0 Difficulty Rogue Special Mode None Game No. 277 Rogue 265 Adventurer 12 Explorer 0 Win Type - Total 1 Types 1/0/0/0/0/0/0/0/0/0 Lore% 36 Gallery% 44 Achievement% 25 Wizard Run 0 Options --------- Layout 1 ASCII 0 Keyboard 0 Movement Mouse Keybinds 0 Fullscreen 1 Font 32/SmallcapsGlow Map View 77x35 Zoom Use 0% Tactical HUD 1 Map Filters NONE Filters NONE Steam 1 RUN: ec842530-7828-4135-a4be-06db047f29c8